fUSD/lending_fUSD_20241222
["ID","MTS","AMOUNT","RATE_DAILY","PERIOD"]
[346267787,1734853838072,-822.08,0.00018567,2]
[346267788,1734853838081,-1000.0,0.00018602,2]
[346267789,1734853838091,-250.0,0.00018644,2]
[346267790,1734853838100,-202.0,0.0001874,2]
[346267791,1734853838110,-202.0,0.0001899,2]
[346267792,1734853838119,-393.103,0.00019,2]
[346267793,1734853838128,-202.0,0.0001924,2]
[346267794,1734853838137,-1911.93583125,0.00019324,2]
[346267795,1734853838146,-288.48,0.00019334,2]
[346267796,1734853838156,-1911.93583116,0.00019388,2]
[346267797,1734853838166,-129164.0,0.00019401,2]
[346267798,1734853838179,-992.695,0.00019424,2]
[346267799,1734853838188,-150.0,0.00019424,2]
[346267800,1734853838198,-875.71,0.00019448,2]
[346267801,1734853838207,-500.0,0.00019448,2]
[346267802,1734853838217,-500.0,0.00019448,2]
[346267803,1734853838226,-500.0,0.00019448,2]
[346267804,1734853838236,-500.0,0.00019448,2]
[346267805,1734853838245,-500.0,0.00019448,2]
[346267806,1734853838255,-500.0,0.00019448,2]
[346267807,1734853838263,-614.94479991,0.00019448,2]
[346267808,1734853838272,-500.0,0.00019448,2]
[346267809,1734853838282,-177.36479156,0.00019448,2]
[346267810,1734853838291,-214.67120171,0.00019448,2]
[346267811,1734853838301,-500.0,0.00019448,2]
[346267812,1734853838311,-500.0,0.00019448,2]
[346267813,1734853838320,-316.67923319,0.00019448,2]
[346267814,1734853838330,-500.0,0.00019448,2]
[346267815,1734853838339,-500.0,0.00019448,2]
[346267816,1734853838348,-500.0,0.00019448,2]
[346267817,1734853838357,-500.0,0.00019448,2]
[346267818,1734853838367,-500.0,0.00019448,2]
[346267819,1734853838376,-500.0,0.00019448,2]
[346267820,1734853838385,-500.0,0.00019448,2]
[346267821,1734853838395,-570.91,0.00019448,2]
[346267822,1734853838404,-500.0,0.00019448,2]
[346267823,1734853838413,-500.0,0.00019448,2]
[346267824,1734853838424,-500.0,0.00019448,2]
[346267825,1734853838433,-459.14430954,0.00019448,2]
[346267826,1734853838442,-500.0,0.00019448,2]
[346267827,1734853838452,-500.0,0.00019448,2]
[346267828,1734853838462,-500.0,0.00019448,2]
[346267829,1734853838472,-500.0,0.00019448,2]
[346267831,1734853838482,-399.41,0.00019448,2]
[346267833,1734853838491,-500.0,0.00019448,2]
[346267835,1734853838500,-500.0,0.00019448,2]
[346267837,1734853838509,-500.0,0.00019448,2]
[346267839,1734853838517,-500.0,0.00019448,2]
[346267841,1734853838526,-500.0,0.00019448,2]
[346267843,1734853838535,-500.0,0.00019448,2]
[346267845,1734853838544,-500.0,0.00019448,2]
[346267847,1734853838553,-500.0,0.00019448,2]
[346267849,1734853838562,-500.0,0.00019448,2]
[346267851,1734853838571,-500.0,0.00019448,2]
[346267853,1734853838580,-500.0,0.00019448,2]
[346267855,1734853838590,-500.0,0.00019448,2]
[346267857,1734853838599,-500.0,0.00019448,2]
[346267859,1734853838607,-500.0,0.00019448,2]
[346267861,1734853838616,-500.0,0.00019448,2]
[346267863,1734853838625,-500.0,0.00019448,2]
[346267865,1734853838634,-769.7,0.00019448,2]
[346267867,1734853838643,-500.0,0.00019448,2]
[346267869,1734853838652,-500.0,0.00019448,2]
[346267871,1734853838661,-500.0,0.00019448,2]
[346267873,1734853838672,-500.0,0.00019448,2]
[346267875,1734853838682,-500.0,0.00019448,2]
[346267877,1734853838691,-291.70356137,0.00019448,2]
[346267879,1734853838701,-500.0,0.00019448,2]
[346267881,1734853838710,-1009.65,0.00019448,2]
[346267883,1734853838719,-500.0,0.00019448,2]
[346267885,1734853838728,-500.0,0.00019448,2]
[346267887,1734853838738,-500.0,0.00019448,2]
[346267889,1734853838747,-500.0,0.00019448,2]
[346267891,1734853838756,-500.0,0.00019448,2]
[346267892,1734853838765,-506.97266176,0.00019448,2]
[346267893,1734853838773,-1292.96,0.00019448,2]
[346267894,1734853838782,-673.96,0.00019448,2]
[346267895,1734853838792,-500.0,0.00019448,2]
[346267896,1734853838800,-500.0,0.00019448,2]
[346267897,1734853838809,-505.75914912,0.00019448,2]
[346267898,1734853838818,-500.0,0.00019448,2]
[346267899,1734853838827,-500.0,0.00019448,2]
[346267900,1734853838835,-508.60513053,0.00019448,2]
[346267901,1734853838844,-191.67171834,0.00019448,2]
[346267902,1734853838853,-500.0,0.00019448,2]
[346267903,1734853838861,-500.0,0.00019448,2]
[346267904,1734853838870,-500.0,0.00019448,2]
[346267905,1734853838879,-500.0,0.00019448,2]
[346267906,1734853838887,-527.66587826,0.00019448,2]
[346267907,1734853838896,-505.72222424,0.00019448,2]
[346267908,1734853838904,-508.87035279,0.00019448,2]
[346267909,1734853838913,-500.0,0.00019448,2]
[346267910,1734853838930,-500.0,0.00019448,2]
[346267911,1734853838938,-507.97207725,0.00019448,2]
[346267912,1734853838947,-504.6308568,0.00019448,2]
[346267913,1734853838956,-500.0,0.00019448,2]
[346267915,1734853838965,-510.6930561,0.00019448,2]
[346267917,1734853838977,-507.41645861,0.00019448,2]
[346267919,1734853838986,-500.0,0.00019448,2]
[346267921,1734853838995,-500.0,0.00019448,2]
[346267923,1734853839005,-500.0,0.00019448,2]
[346267925,1734853839014,-500.0,0.00019448,2]
[346267927,1734853839023,-500.0,0.00019448,2]
[346267929,1734853839033,-500.0,0.00019448,2]
[346267931,1734853839043,-500.0,0.00019448,2]
[346267933,1734853839052,-500.0,0.00019448,2]
[346267935,1734853839061,-500.0,0.00019448,2]
[346267937,1734853839070,-500.0,0.00019448,2]
[346267939,1734853839078,-500.0,0.00019448,2]
[346267941,1734853839088,-500.0,0.00019448,2]
[346267943,1734853839097,-500.0,0.00019448,2]
[346267945,1734853839106,-500.0,0.00019448,2]
[346267947,1734853839115,-500.0,0.00019448,2]
[346267949,1734853839124,-500.0,0.00019448,2]
[346267951,1734853839133,-369.03708655,0.00019448,2]
[346267953,1734853839143,-500.0,0.00019448,2]
[346267955,1734853839152,-539.44,0.00019448,2]
[346267957,1734853839161,-500.0,0.00019448,2]
[346267959,1734853839171,-500.0,0.00019448,2]
[346267961,1734853839180,-500.0,0.00019448,2]
[346267963,1734853839189,-500.0,0.00019448,2]
[346267965,1734853839199,-500.0,0.00019448,2]
[346267967,1734853839208,-530.78,0.00019448,2]
[346267969,1734853839217,-500.0,0.00019448,2]
[346267971,1734853839226,-500.0,0.00019448,2]
[346267973,1734853839235,-500.0,0.00019448,2]
[346267975,1734853839244,-500.0,0.00019448,2]
[346267977,1734853839254,-500.0,0.00019448,2]
[346267979,1734853839263,-509.66930306,0.00019448,2]
[346267981,1734853839273,-500.0,0.00019448,2]
[346267983,1734853839282,-500.0,0.00019448,2]
[346267985,1734853839291,-633.91,0.00019448,2]
[346267987,1734853839300,-640.72,0.00019448,2]
[346267989,1734853839309,-505.42198401,0.00019448,2]
[346267991,1734853839318,-1537.56,0.00019448,2]
[346267993,1734853839327,-813.87,0.00019448,2]
[346267994,1734853839337,-500.0,0.00019448,2]
[346267996,1734853839345,-508.38,0.00019448,2]
[346267998,1734853839354,-500.0,0.00019448,2]
[346268000,1734853839363,-846.31,0.00019448,2]
[346268002,1734853839373,-500.0,0.00019448,2]
[346268004,1734853839382,-506.83476541,0.00019448,2]
[346268006,1734853839391,-503.34642382,0.00019448,2]
[346268008,1734853839400,-500.0,0.00019448,2]
[346268010,1734853839409,-1467.22,0.00019448,2]
[346268012,1734853839419,-500.0,0.00019448,2]
[346268014,1734853839428,-664.13,0.00019448,2]
[346268016,1734853839437,-500.0,0.00019448,2]
[346268018,1734853839446,-500.0,0.00019448,2]
[346268020,1734853839455,-500.0,0.00019448,2]
[346268022,1734853839465,-500.0,0.00019448,2]
[346268024,1734853839474,-500.0,0.00019448,2]
[346268026,1734853839483,-500.0,0.00019448,2]
[346268028,1734853839492,-1911.93583116,0.00019452,2]
[346268030,1734853839501,-202.0,0.0001949,2]
[346268032,1734853839511,-1911.93583116,0.00019516,2]
[346268034,1734853839520,-1911.93583116,0.0001958,2]
[346268036,1734853839529,-500.0,0.00019595,2]
[346268038,1734853839539,-1462.26,0.00019595,2]
[346268040,1734853839548,-805.95,0.00019596,2]
[346268042,1734853839557,-2757.85,0.00019596,2]
[346268044,1734853839567,-508.84,0.00019596,2]
[346268046,1734853839576,-500.0,0.00019596,2]
[346268048,1734853839587,-936.91,0.00019596,2]
[346268051,1734853839596,-1545.52,0.00019596,2]
[346268053,1734853839605,-1933.62,0.00019596,2]
[346268055,1734853839614,-793.98,0.00019596,2]
[346268056,1734853839623,-869.28,0.00019596,2]
[346268058,1734853839632,-6113.49,0.00019596,2]
[346268060,1734853839641,-723.89,0.00019596,2]
[346268062,1734853839650,-500.0,0.00019596,2]
[346268064,1734853839659,-1008.97,0.00019596,2]
[346268066,1734853839668,-3972.97,0.00019596,2]
[346268068,1734853839680,-500.0,0.00019596,2]
[346268070,1734853839689,-3996.46,0.00019596,2]
[346268094,1734853839895,-500.0,0.00019596,2]
[346268096,1734853839905,-715.29,0.00019596,2]
[346268098,1734853839914,-500.0,0.00019596,2]
[346268100,1734853839932,-731.96,0.00019596,2]
[346268102,1734853839941,-763.25,0.00019596,2]
[346268104,1734853839949,-500.0,0.00019596,2]
[346268106,1734853839958,-527.75,0.00019596,2]
[346268108,1734853839967,-500.0,0.00019596,2]
[346268110,1734853839976,-603.57,0.00019596,2]
[346268112,1734853839986,-646.46,0.00019596,2]
[346268114,1734853839996,-500.0,0.00019597,2]
[346268116,1734853840005,-500.0,0.00019597,2]
[346268118,1734853840014,-500.0,0.00019597,2]
[346268121,1734853840024,-500.0,0.00019597,2]
[346268123,1734853840033,-500.0,0.00019597,2]
[346268125,1734853840043,-500.0,0.00019597,2]
[346268128,1734853840052,-500.0,0.00019597,2]
[346268131,1734853840060,-507.38006002,0.00019597,2]
[346268134,1734853840069,-509.37380298,0.00019597,2]
[346268136,1734853840078,-507.06986069,0.00019597,2]
[346268137,1734853840087,-500.0,0.00019597,2]
[346268139,1734853840097,-506.93603139,0.00019597,2]
[346268141,1734853840106,-500.0,0.00019597,2]
[346268144,1734853840117,-500.0,0.00019597,2]
[346268146,1734853840127,-513.1577004,0.00019597,2]
[346268148,1734853840136,-500.0,0.00019597,2]
[346268149,1734853840146,-500.0,0.00019597,2]
[346268151,1734853840155,-500.0,0.00019597,2]
[346268153,1734853840164,-500.0,0.00019597,2]
[346268155,1734853840175,-500.0,0.00019597,2]
[346268158,1734853840184,-500.0,0.00019597,2]
[346268159,1734853840194,-500.0,0.00019597,2]
[346268161,1734853840203,-500.0,0.00019597,2]
[346268164,1734853840213,-500.0,0.00019597,2]
[346268165,1734853840222,-500.0,0.00019597,2]
[346268167,1734853840231,-500.0,0.00019597,2]
[346268169,1734853840241,-3552.61,0.00019597,2]
[346268172,1734853840250,-500.0,0.00019597,2]
[346268174,1734853840260,-500.0,0.00019597,2]
[346268176,1734853840270,-500.0,0.00019597,2]
[346268177,1734853840279,-1161.38,0.00019597,2]
[346268179,1734853840288,-500.0,0.00019597,2]
[346268181,1734853840298,-162.284088,0.00019597,2]
[346268183,1734853840308,-748.52,0.00019597,2]
[346268185,1734853840317,-500.0,0.00019597,2]
[346268187,1734853840327,-172.875664,0.00019597,2]
[346268189,1734853840336,-295.898324,0.00019597,2]
[346268191,1734853840345,-500.0,0.00019597,2]
[346268193,1734853840354,-500.0,0.00019597,2]
[346268195,1734853840363,-3753.7,0.00019597,2]
[346268197,1734853840373,-830.81,0.00019597,2]
[346268199,1734853840382,-500.0,0.00019597,2]
[346268201,1734853840391,-500.0,0.00019597,2]
[346268203,1734853840400,-500.0,0.00019597,2]
[346268205,1734853840409,-500.0,0.00019597,2]
[346268207,1734853840419,-500.0,0.00019597,2]
[346268209,1734853840429,-500.0,0.00019597,2]
[346268211,1734853840439,-500.0,0.00019597,2]
[346268214,1734853840449,-500.0,0.00019597,2]
[346268216,1734853840459,-500.0,0.00019597,2]
[346268217,1734853840468,-500.0,0.00019597,2]
[346268219,1734853840478,-500.0,0.00019597,2]
[346268222,1734853840487,-500.0,0.00019597,2]
[346268224,1734853840497,-550.24,0.00019597,2]
[346268226,1734853840507,-696.2,0.00019597,2]
[346268228,1734853840516,-500.0,0.00019597,2]
[346268230,1734853840525,-422.13349838,0.00019597,2]
[346268232,1734853840534,-500.0,0.00019597,2]
[346268234,1734853840544,-500.0,0.00019597,2]
[346268236,1734853840553,-500.0,0.00019597,2]
[346268237,1734853840561,-492.0,0.00019597,2]
[346268240,1734853840571,-500.0,0.00019597,2]
[346268241,1734853840581,-500.0,0.00019597,2]
[346268244,1734853840591,-513.75,0.00019597,2]
[346268246,1734853840602,-500.0,0.00019597,2]
[346268247,1734853840611,-1132.39,0.00019597,2]
[346268250,1734853840620,-500.0,0.00019597,2]
[346268252,1734853840629,-500.0,0.00019597,2]
[346268253,1734853840638,-1526.59,0.00019597,2]
[346268255,1734853840646,-500.0,0.00019597,2]
[346268257,1734853840655,-3218.32,0.00019597,2]
[346268260,1734853840665,-500.0,0.00019597,2]
[346268262,1734853840676,-500.0,0.00019597,2]
[346268264,1734853840685,-500.0,0.00019597,2]
[346268266,1734853840694,-698.17,0.00019597,2]
[346268268,1734853840704,-500.0,0.00019597,2]
[346268270,1734853840713,-929.69,0.00019597,2]
[346268272,1734853840722,-2196.62,0.00019597,2]
[346268274,1734853840731,-500.0,0.00019597,2]
[346268276,1734853840740,-500.0,0.00019597,2]
[346268278,1734853840749,-2721.95,0.00019597,2]
[346268280,1734853840757,-500.0,0.00019597,2]
[346268282,1734853840766,-2306.62,0.00019597,2]
[346268284,1734853840775,-500.0,0.00019597,2]
[346268285,1734853840784,-500.0,0.00019597,2]
[346268287,1734853840793,-500.0,0.00019597,2]
[346268289,1734853840802,-176.30522097,0.00019597,2]
[346268291,1734853840811,-500.0,0.00019597,2]
[346268293,1734853840820,-500.0,0.00019597,2]
[346268295,1734853840829,-500.0,0.00019597,2]
[346268297,1734853840838,-500.0,0.00019597,2]
[346268299,1734853840847,-500.0,0.00019597,2]
[346268301,1734853840856,-9188.73,0.00019597,2]
[346268303,1734853840865,-500.0,0.00019597,2]
[346268305,1734853840873,-500.0,0.00019597,2]
[346268307,1734853840882,-500.0,0.00019597,2]
[346268309,1734853840890,-642.03244401,0.00019597,2]
[346268311,1734853840899,-638.04766769,0.00019597,2]
[346268313,1734853840908,-2189.9,0.00019597,2]
[346268315,1734853840916,-504.04182002,0.00019597,2]
[346268317,1734853840929,-173.150856,0.00019597,2]
[346268319,1734853840937,-500.0,0.00019597,2]
[346268321,1734853840946,-172.875664,0.00019597,2]
[346268323,1734853840955,-168.332671,0.00019597,2]
[346268325,1734853840963,-500.0,0.00019597,2]
[346268326,1734853840974,-500.0,0.00019597,2]
[346268329,1734853840983,-500.0,0.00019597,2]
[346268330,1734853840992,-618.88396214,0.00019597,2]
[346268332,1734853841002,-500.0,0.00019597,2]
[346268335,1734853841011,-500.0,0.00019597,2]
[346268337,1734853841020,-500.0,0.00019597,2]
[346268338,1734853841029,-500.0,0.00019597,2]
[346268341,1734853841038,-1096.5635449,0.00019622,2]
[346268343,1734853841047,-1911.93583116,0.00019644,2]
[346268344,1734853841056,-1096.5635449,0.00019653,2]
[346268346,1734853841065,-1096.5635449,0.00019684,2]
[346268349,1734853841075,-1911.93583116,0.00019708,2]
[346268351,1734853841084,-154.42,0.00019713,2]
[346268353,1734853841093,-1096.5635449,0.00019715,2]
[346268355,1734853841102,-500.0,0.00019721,2]
[346268357,1734853841111,-500.0,0.00019721,2]
[346268359,1734853841120,-646.02,0.00019721,2]
[346268361,1734853841129,-500.0,0.00019721,2]
[346268363,1734853841138,-500.0,0.00019721,2]
[346268365,1734853841147,-500.0,0.00019721,2]
[346268367,1734853841155,-1034.08,0.00019721,2]
[346268369,1734853841164,-500.0,0.00019721,2]
[346268371,1734853841175,-500.0,0.00019721,2]
[346268373,1734853841185,-500.0,0.00019721,2]
[346268374,1734853841195,-500.0,0.00019721,2]
[346268377,1734853841204,-507.84,0.00019721,2]
[346268379,1734853841214,-500.0,0.00019721,2]
[346268381,1734853841223,-500.0,0.00019721,2]
[346268382,1734853841231,-500.0,0.00019721,2]
[346268385,1734853841241,-500.0,0.00019721,2]
[346268387,1734853841250,-500.0,0.00019721,2]
[346268389,1734853841260,-597.74,0.00019721,2]
[346268391,1734853841272,-500.0,0.00019721,2]
[346268393,1734853841282,-500.0,0.00019721,2]
[346268395,1734853841291,-500.0,0.00019721,2]
[346268397,1734853841300,-500.0,0.00019721,2]
[346268398,1734853841309,-500.0,0.00019721,2]
[346268399,1734853841318,-168.13,0.00019721,2]
[346268400,1734853841327,-220.43513225,0.00019721,2]
[346268401,1734853841338,-392.09,0.00019721,2]
[346268402,1734853841347,-548.22,0.00019721,2]
[346268404,1734853841356,-500.0,0.00019721,2]
[346268406,1734853841365,-653.4,0.00019721,2]
[346268408,1734853841375,-170.41452621,0.00019721,2]
[346268410,1734853841384,-500.0,0.00019721,2]
[346268412,1734853841393,-638.51,0.00019721,2]
[346268414,1734853841402,-500.0,0.00019721,2]
[346268416,1734853841411,-500.0,0.00019721,2]
[346268418,1734853841420,-500.0,0.00019721,2]
[346268420,1734853841431,-838.74,0.00019721,2]
[346268422,1734853841439,-711.11,0.00019721,2]
[346268424,1734853841448,-569.5,0.00019721,2]
[346268426,1734853841457,-682.94,0.00019721,2]
[346268428,1734853841466,-500.0,0.00019721,2]
[346268430,1734853841475,-500.0,0.00019721,2]
[346268432,1734853841484,-1433.67,0.00019721,2]
[346268433,1734853841493,-500.94,0.00019721,2]
[346268434,1734853841502,-704.48,0.00019721,2]
[346268435,1734853841511,-2025.19,0.00019721,2]
[346268436,1734853841520,-586.77,0.00019721,2]
[346268437,1734853841529,-1169.43,0.00019721,2]
[346268438,1734853841538,-500.0,0.00019721,2]
[346268439,1734853841547,-500.0,0.00019721,2]
[346268440,1734853841556,-585.72,0.00019721,2]
[346268441,1734853841571,-500.0,0.00019721,2]
[346268442,1734853841593,-5091.32,0.00019721,2]
[346268443,1734853841604,-500.0,0.00019721,2]
[346268444,1734853841613,-517.76,0.00019721,2]
[346268445,1734853841622,-500.0,0.00019721,2]
[346268446,1734853841631,-501.74939505,0.00019721,2]
[346268447,1734853841640,-2061.65,0.00019721,2]
[346268448,1734853841649,-500.0,0.00019721,2]
[346268449,1734853841658,-3111.04,0.00019721,2]
[346268450,1734853841667,-543.361772,0.00019721,2]
[346268451,1734853841677,-7818.68,0.00019721,2]
[346268452,1734853841685,-500.0,0.00019721,2]
[346268453,1734853841694,-630.18,0.00019721,2]
[346268454,1734853841704,-3111.72,0.00019721,2]
[346268455,1734853841713,-500.0,0.00019721,2]
[346268456,1734853841722,-500.0,0.00019721,2]
[346268457,1734853841732,-2696.57,0.00019721,2]
[346268458,1734853841741,-500.0,0.00019721,2]
[346268459,1734853841750,-3712.93,0.00019721,2]
[346268460,1734853841758,-665.37,0.00019721,2]
[346268461,1734853841768,-500.0,0.00019721,2]
[346268462,1734853841776,-500.0,0.00019721,2]
[346268463,1734853841786,-500.0,0.00019721,2]
[346268464,1734853841795,-1244.2,0.00019721,2]
[346268465,1734853841804,-500.0,0.00019721,2]
[346268466,1734853841813,-500.0,0.00019721,2]
[346268467,1734853841822,-514.28629827,0.00019721,2]
[346268468,1734853841831,-875.71,0.00019722,2]
[346268469,1734853841840,-500.0,0.00019722,2]
[346268470,1734853841850,-500.0,0.00019722,2]
[346268471,1734853841859,-500.0,0.00019722,2]
[346268472,1734853841868,-500.0,0.00019722,2]
[346268473,1734853841877,-402.50564989,0.00019722,2]
[346268474,1734853841886,-500.0,0.00019722,2]
[346268475,1734853841895,-500.0,0.00019722,2]
[346268476,1734853841905,-500.0,0.00019722,2]
[346268477,1734853841914,-500.0,0.00019722,2]
[346268478,1734853841928,-500.0,0.00019722,2]
[346268479,1734853841937,-500.0,0.00019722,2]
[346268480,1734853841946,-500.0,0.00019722,2]
[346268481,1734853841956,-500.0,0.00019722,2]
[346268482,1734853841965,-500.0,0.00019722,2]
[346268483,1734853841974,-500.0,0.00019722,2]
[346268484,1734853841984,-500.0,0.00019722,2]
[346268485,1734853841993,-500.0,0.00019722,2]
[346268486,1734853842003,-500.0,0.00019722,2]
[346268487,1734853842012,-500.0,0.00019722,2]
[346268488,1734853842022,-500.0,0.00019722,2]
[346268489,1734853842031,-500.0,0.00019722,2]
[346268490,1734853842041,-500.0,0.00019722,2]
[346268491,1734853842052,-500.0,0.00019722,2]
[346268492,1734853842063,-213.88,0.00019722,2]
[346268493,1734853842072,-500.0,0.00019722,2]
[346268494,1734853842080,-500.0,0.00019722,2]
[346268495,1734853842090,-500.0,0.00019722,2]
[346268496,1734853842099,-500.0,0.00019722,2]
[346268497,1734853842108,-500.0,0.00019722,2]
[346268498,1734853842117,-500.0,0.00019722,2]
[346268499,1734853842127,-500.0,0.00019722,2]
[346268500,1734853842136,-500.0,0.00019722,2]
[346268501,1734853842145,-500.0,0.00019722,2]
[346268502,1734853842155,-500.0,0.00019722,2]
[346268503,1734853842164,-769.7,0.00019722,2]
[346268504,1734853842173,-500.0,0.00019722,2]
[346268505,1734853842183,-500.0,0.00019722,2]
[346268506,1734853842193,-500.0,0.00019722,2]
[346268507,1734853842207,-500.0,0.00019722,2]
[346268508,1734853842217,-500.0,0.00019722,2]
[346268509,1734853842226,-1009.65,0.00019722,2]
[346268510,1734853842235,-500.0,0.00019722,2]
[346268511,1734853842244,-500.0,0.00019722,2]
[346268512,1734853842255,-500.0,0.00019722,2]
[346268513,1734853842264,-500.0,0.00019722,2]
[346268514,1734853842273,-500.0,0.00019722,2]
[346268515,1734853842283,-1292.96,0.00019722,2]
[346268516,1734853842292,-673.96,0.00019722,2]
[346268517,1734853842302,-500.0,0.00019722,2]
[346268518,1734853842312,-500.0,0.00019722,2]
[346268519,1734853842322,-500.0,0.00019722,2]
[346268520,1734853842331,-500.0,0.00019722,2]
[346268521,1734853842340,-500.0,0.00019722,2]
[346268522,1734853842350,-500.0,0.00019722,2]
[346268523,1734853842359,-500.0,0.00019722,2]
[346268524,1734853842368,-500.0,0.00019722,2]
[346268525,1734853842378,-500.0,0.00019722,2]
[346268526,1734853842387,-500.0,0.00019722,2]
[346268527,1734853842397,-500.0,0.00019722,2]
[346268528,1734853842406,-594.07464327,0.00019722,2]
[346268529,1734853842416,-500.0,0.00019722,2]
[346268530,1734853842426,-500.0,0.00019722,2]
[346268531,1734853842435,-500.0,0.00019722,2]
[346268532,1734853842445,-500.0,0.00019722,2]
[346268533,1734853842454,-500.0,0.00019722,2]
[346268534,1734853842463,-500.0,0.00019722,2]
[346268535,1734853842472,-500.0,0.00019722,2]
[346268536,1734853842482,-500.0,0.00019722,2]
[346268537,1734853842491,-500.0,0.00019722,2]
[346268538,1734853842500,-500.0,0.00019722,2]
[346268539,1734853842509,-937.45,0.00019722,2]
[346268540,1734853842519,-697.24,0.00019722,2]
[346268541,1734853842528,-500.0,0.00019722,2]
[346268542,1734853842538,-663.73,0.00019722,2]
[346268543,1734853842547,-195.08,0.00019722,2]
[346268544,1734853842556,-500.0,0.00019722,2]
[346268545,1734853842566,-2082.35,0.00019722,2]
[346268546,1734853842575,-500.0,0.00019722,2]
[346268547,1734853842584,-607.13,0.00019722,2]
[346268548,1734853842593,-500.0,0.00019722,2]
[346268549,1734853842603,-1569.9,0.00019722,2]
[346268550,1734853842613,-500.0,0.00019722,2]
[346268551,1734853842623,-1117.47,0.00019722,2]
[346268552,1734853842632,-530.78,0.00019722,2]
[346268553,1734853842642,-500.0,0.00019722,2]
[346268554,1734853842651,-951.31,0.00019722,2]
[346268555,1734853842660,-500.0,0.00019722,2]
[346268556,1734853842669,-11217.45,0.00019722,2]
[346268557,1734853842680,-500.0,0.00019722,2]
[346268558,1734853842689,-500.0,0.00019722,2]
[346268559,1734853842699,-576.14,0.00019722,2]
[346268560,1734853842708,-1024.61,0.00019722,2]
[346268561,1734853842717,-633.91,0.00019722,2]
[346268562,1734853842727,-658.42,0.00019722,2]
[346268563,1734853842736,-1537.56,0.00019722,2]
[346268564,1734853842745,-813.87,0.00019722,2]
[346268565,1734853842755,-508.38,0.00019722,2]
[346268566,1734853842764,-500.0,0.00019722,2]
[346268567,1734853842773,-846.31,0.00019722,2]
[346268568,1734853842783,-500.0,0.00019722,2]
[346268569,1734853842792,-741.59,0.00019722,2]
[346268570,1734853842801,-13974.57,0.00019722,2]
[346268571,1734853842810,-1467.22,0.00019722,2]
[346268572,1734853842819,-1218.4,0.00019722,2]
[346268573,1734853842830,-500.0,0.00019722,2]
[346268574,1734853842841,-844.99,0.00019722,2]
[346268575,1734853842851,-664.13,0.00019722,2]
[346268576,1734853842862,-500.0,0.00019722,2]
[346268577,1734853842871,-597.55,0.00019722,2]
[346268578,1734853842882,-4772.89,0.00019722,2]
[346268579,1734853842892,-500.0,0.00019722,2]
[346268580,1734853842902,-500.0,0.00019722,2]
[346268581,1734853842914,-500.0,0.00019722,2]
[346268582,1734853842930,-1550.91,0.00019722,2]
[346268583,1734853842939,-295.73842489,0.00019722,2]
[346268584,1734853842949,-500.0,0.00019722,2]
[346268585,1734853842962,-1000.0,0.00019722,2]
[346268586,1734853842972,-500.0,0.00019722,2]